Cogmind - Beta 14 @@@ ROGUE MODE // 2025.03.29 @ 00:35:50 Player: SirusTheMadDJ Result: Destroyed by G-47 Trooper with Particle Gun Performance ------------- Evolutions (1) 500 Regions Visited (3) 600 Robots Destroyed (51) 255 Value Destroyed (1479) 1479 Prototype IDs (4) 80 Alien Tech Used (0) 0 Bonus (76) 76 TOTAL SCORE: 2990 Bonus ------- High Alert Combat Kills 76 Cogmind --------- Core Integrity 0/400 Matter 293/300 Energy 245/265 System Corruption 3% Temperature Cool (87) Movement Rolling (90) Location -9/Mines Parts ------- > --- POWER (1) -------- Improved Ion Engine > --- PROPULSION (2) --- Armored Wheel Armored Wheel > --- UTILITY (4) ------ Terrain Scan Processor Hacking Suite Tractor Beam > --- WEAPON (2) ------- Improved EM Shotgun > --- INVENTORY (5) ---- Aluminum Leg Armored Wheel EMP Blaster Datajack Peak State ------------ > --- POWER ------------ Cooled Ion Engine > --- PROPULSION ------- Armored Wheel Armored Wheel > --- UTILITY ---------- Small Storage Unit Terrain Scan Processor Hacking Suite Tractor Beam > --- WEAPON ----------- Heavy Assault Rifle Heavy Assault Rifle > --- INVENTORY -------- Aluminum Leg Aluminum Leg Aluminum Leg Aluminum Leg Improved EM Shotgun EMP Blaster Datajack [Rating: 19] Favorites ----------- Power Cooled Ion Engine Engine Cooled Ion Engine Power Core Light Nuclear Core Propulsion Armored Wheel Leg Aluminum Leg Wheel Armored Wheel Utility Small Storage Unit Device Weight Redist. System Storage Small Storage Unit Processor Terrain Scan Processor Hackware Hacking Suite Weapon Heavy Assault Rifle Energy Gun Improved EM Shotgun Energy Cannon Beam Cannon Ballistic Gun Heavy Assault Rifle Special Weapon Mining Laser Impact Weapon Flail Special Melee Weapon Datajack Build | -11 -10 -9 -9 ------- Run | Yrd Mat Mat Min Slots Evolved 2 | . . 2 . Power . | . . . . Propulsion . | . . . . Utility 2 | . . 2 . Weapon . | . . . . Parts Attached 50 | 6 17 26 1 Power 9 | 1 3 5 . Engine 7 | 1 1 5 . Core 2 | . 2 . . Reactor . | . . . . Propulsion 18 | 2 7 9 . Treads . | . . . . Leg 9 | 2 5 2 . Wheel 9 | . 2 7 . Hover . | . . . . Flight . | . . . . Utility 7 | 1 . 6 . Device 4 | . . 4 . Storage 1 | 1 . . . Processor 1 | . . 1 . Hackware 1 | . . 1 . Protection . | . . . . Artifact . | . . . . Weapon 16 | 2 7 6 1 Energy Gun 6 | 1 2 2 1 Energy Cannon 1 | . 1 . . Ballistic Gun 5 | 1 . 4 . Ballistic Cannon . | . . . . Launcher . | . . . . Special Weapon 1 | . 1 . . Impact Weapon 2 | . 2 . . Slashing Weapon . | . . . . Piercing Weapon . | . . . . Special Melee Weapon 1 | . 1 . . Unidentified Prototypes 4 | . . 4 . Corrupted Parts 1 | . 1 . . System Corruption 2 | . 2 . . Parts Lost 18 | . 6 10 2 Power 4 | . 1 3 . Propulsion 3 | . 1 2 . Utility 3 | . . 2 1 Weapon 8 | . 4 3 1 Highest Loss Streak 5 | . 4 5 2 To Critical Strikes . | . . . . Average Slot Usage (%) 80 | . 79 79 88 Engine 8 | . 6 9 11 Core 2 | . 7 . . Leg 6 | . 22 . . Wheel 16 | . 5 21 22 Device 6 | . . 8 11 Storage 11 | . 14 11 9 Processor 3 | . . 4 11 Hackware 2 | . . 2 11 Energy Gun 5 | . 4 6 1 Energy Cannon 1 | . 6 . . Ballistic Gun 12 | . 8 14 11 Peak Build Rating 19 | 6 13 19 17 Average Rating 13 | 4 7 15 16 On Entrance 8 | . 6 13 16 Naked Turns . | . . . . Heaviest Build 20 | 13 15 20 16 Greatest Support 30 | 20 24 30 24 Greatest Overweight (x) 3 | 3 . 1 . Average Overweight (x) . | . . . . Largest Inventory Capacity 8 | 8 8 8 8 Average Capacity 7 | 7 8 8 7 Most Carried 8 | 1 7 8 8 Average Carried 6 | . 4 7 7 Final Capacity 8 | 8 8 8 5 Final Carried 8 | 1 6 8 4 Class Distribution -------------------- 100% | Mutant Dominant Class ---------------- Mutant | -10/Materials Mutant | -9/Materials Mutant | -9/Mines Resources | -11 -10 -9 -9 ----------- Run | Yrd Mat Mat Min Matter Collected 1290 | 260 231 762 37 Remotely 301 | . . 264 37 Salvage Created 2141 | . 421 1659 61 Parts 125 | . 27 94 4 Haulers Intercepted 3 | . . 3 . Recyclers Shooed 4 | . 1 3 . Parts Field Recycled . | . . . . Retrieved Matter . | . . . . Parts Self-Destructed . | . . . . Prevented . | . . . . Kills | -11 -10 -9 -9 ------- Run | Yrd Mat Mat Min Combat Hostiles Destroyed 39 | . 12 26 1 Melee 1 | . 1 . . Guns 31 | . 5 25 1 Cannons 5 | . 5 . . AOE 1 | . . 1 . Classes Destroyed 10 | . 2 8 . Worker 3 | . . 2 1 Builder 1 | . . 1 . Hauler 3 | . . 3 . Recycler 2 | . . 2 . Operator 1 | . . 1 . Watcher 2 | . . 2 . Swarmer 4 | . 3 1 . Grunt 26 | . 9 16 1 Brawler 1 | . . 1 . Sentry 8 | . . 8 . Best Kill Streak 8 | . 3 8 1 Combat Bots Only 5 | . 3 5 1 Max Kills in Single Turn 1 | . 1 1 1 Gunslinging . | . . . . Exploded 1 | . . 1 . Melee 1 | . 1 . . Uniques/NPCs Destroyed . | . . . . Combat | -11 -10 -9 -9 -------- Run | Yrd Mat Mat Min Hostile Shots Fired 302 | . 103 175 24 Missed 80 | . 22 52 6 Damage Taken 2782 | . 973 1561 248 Core 604 | . 190 385 29 Absorbed by Shields . | . . . . Core Remaining (%) 62 | 100 24 . . Volleys Fired 195 | . 72 109 14 Largest 2 | . 2 2 2 Hottest 100 | . 100 90 68 Shots Fired 333 | . 102 213 18 Gun 298 | . 67 213 18 Cannon 31 | . 31 . . Launcher . | . . . . Special 4 | . 4 . . Kinetic 213 | . 39 161 13 Thermal 38 | . 38 . . Explosive . | . . . . Electromagnetic 82 | . 25 52 5 Robot Hit Streak 12 | . 6 12 6 Robot Miss Streak 4 | . 4 4 1 Penetration Max . | . . . . Secondary Targets 5 | . . 5 . Max Gunslinging Chain 1 | . . 1 . Shots Hit Robots 217 | . 55 148 14 Core Hits 89 | . 20 64 5 Critical Kills 1 | . . 1 . Critical Parts Destroyed 1 | . . 1 . Critical Strikes 2 | . . 2 . Destroy 1 | . . 1 . Smash 1 | . . 1 . Melee Attacks 8 | . 4 4 . Impact 4 | . . 4 . Slashing . | . . . . Piercing . | . . . . Sneak Attacks 1 | . . 1 . Combat Hostiles . | . . . . Follow-up Attacks . | . . . . Damage Inflicted 3652 | . 776 2604 272 Guns 2994 | . 484 2279 231 Cannons 241 | . 241 . . Explosions 184 | . . 143 41 Melee 152 | . . 152 . Ramming 33 | . 3 30 . Kinetic 1888 | . 231 1531 126 Thermal 495 | . 311 143 41 Explosive . | . . . . Electromagnetic 1084 | . 231 748 105 Impact 152 | . . 152 . Slashing . | . . . . Piercing . | . . . . Highest Corruption 3 | . 2 3 3 Average Corruption 2 | . 2 2 3 Corruption Purged . | . . . . Corruption Blocked . | . . . . Effects 14 | . . 14 . Message Errors 3 | . . 3 . Matter Fused 3 | . . 3 . Heat Flow Errors 3 | . . 3 . Energy Discharges 1 | . . 1 . Data Loss (minor) 3 | . . 3 . Misfires 1 | . . 1 . Overload Shots . | . . . . Overflow Damage 9 | . . 9 . Projectiles . | . . . . Explosions . | . . . . Melee 9 | . . 9 . Knockbacks . | . . . . Impact . | . . . . Kinetic . | . . . . Secondary . | . . . . Self-Inflicted Damage 14 | . . 14 . Shots . | . . . . Rammed 3 | . . 3 . Targets Rammed 6 | . 3 3 . Kicked 3 | . 3 . . Crushed . | . . . . Highest Temperature 240 | . 240 217 72 Average Temperature 75 | . 83 64 40 Received Heat Transfer 1281 | . 426 717 138 Effects 1 | . 1 . . Energy Bleed 1 | . 1 . . Siege Activations . | . . . . Robots Corrupted 1 | . 1 . . Combat Hostiles 1 | . 1 . . Parts Fried 6 | . 3 3 . Impact Corruptions 1 | . . 1 . Robots Melted . | . . . . Combat Hostiles . | . . . . Parts Melted . | . . . . Heat Transferred 968 | . 668 250 50 Parts Sabotaged . | . . . . Parts Stolen . | . . . . Parts Stripped . | . . . . Power Chain Reactions 3 | . . 2 1 Alert | -11 -10 -9 -9 ------- Run | Yrd Mat Mat Min Peak Influence 571 | . 180 571 242 Initial 222 | . . 44 222 Average 228 | . 66 307 228 Maximum Alert Level 2 | . . 2 1 Low Security (%) 48 | 100 100 25 . Level 1 29 | . . 40 100 Level 2 22 | . . 33 . Level 3 . | . . . . Level 4 . | . . . . Level 5 . | . . . . High Security . | . . . . Max Security . | . . . . Squads Dispatched 5 | . 1 4 . Investigation 1 | . . 1 . Extermination . | . . . . Reinforcement 2 | . 1 1 . Assault 2 | . . 2 . Garrison . | . . . . Intercept . | . . . . Searches Triggered . | . . . . Construction Impeded . | . . . . Haulers Reinforced . | . . . . Active Scanning Responses . | . . . . Cargo Convoy Interrupts . | . . . . Stealth | -11 -10 -9 -9 --------- Run | Yrd Mat Mat Min Distress Signals 2 | . . 2 . Communications Jammed . | . . . . Distress Signals . | . . . . Times Spotted 70 | . 19 48 3 Peak Tracking Total 10 | . 4 10 3 Tactical Retreats 4 | . . 4 . Traps | -11 -10 -9 -9 ------- Run | Yrd Mat Mat Min Traps Triggered 5 | . 2 3 . Indirectly . | . . . . Trap Hack Attempts . | . . . . Triggered . | . . . . Disarmed . | . . . . Reprogrammed . | . . . . Reused . | . . . . Traps Extracted . | . . . . Installed . | . . . . Triggered . | . . . . Machines | -11 -10 -9 -9 ---------- Run | Yrd Mat Mat Min Machines Disabled 2 | . . 2 . Max in Single Turn 1 | . . 1 . Machines Repaired . | . . . . Machines Dismantled . | . . . . Machines Sabotaged . | . . . . Overloaded Fab Kills . | . . . . Hacking | -11 -10 -9 -9 --------- Run | Yrd Mat Mat Min Machines Accessed . | . . . . Terminals . | . . . . Fabricators . | . . . . Repair Stations . | . . . . Recycling Units . | . . . . Scanalyzers . | . . . . Garrison Access . | . . . . Total Hacks . | . . . . Successful . | . . . . Failed . | . . . . Catastrophic . | . . . . Database Lockouts . | . . . . Manual . | . . . . Terminals . | . . . . Fabricators . | . . . . Repair Stations . | . . . . Recycling Units . | . . . . Scanalyzers . | . . . . Garrison Access . | . . . . Terminal Hacks . | . . . . Fabricator Hacks . | . . . . Repair Station Hacks . | . . . . Recycling Unit Hacks . | . . . . Scanalyzer . | . . . . Garrison Access Hacks . | . . . . Unauthorized Hacks . | . . . . Terminals . | . . . . Fabricators . | . . . . Repair Stations . | . . . . Recycling Units . | . . . . Scanalyzers . | . . . . Garrison Access . | . . . . Data Cores Recovered . | . . . . Used . | . . . . Hacking Detections . | . . . . Full Trace Events . | . . . . Feedback Events . | . . . . Feedback Blocked . | . . . . Robot Schematics Acquired . | . . . . Robots Built . | . . . . Authchips . | . . . . Time . | . . . . Total Robot Build Rating . | . . . . Part Schematics Acquired . | . . . . Parts Built . | . . . . Authchips . | . . . . Time . | . . . . Total Part Build Rating . | . . . . Parts Repaired . | . . . . Time . | . . . . Parts Recycled . | . . . . Recycled Matter . | . . . . Retrieved Matter . | . . . . Retrieved Components . | . . . . Parts Scanalyzed . | . . . . Part Schematics Acquired . | . . . . Parts Damaged . | . . . . Bothacking | -11 -10 -9 -9 ------------ Run | Yrd Mat Mat Min Used RIF Installer . | . . . . Robots Hacked 1 | . 1 . . Non-combat 1 | . 1 . . Combat . | . . . . Robot Hacks Applied 1 | . 1 . . parse_system 1 | . 1 . . Relay Couplers Released . | . . . . Fabnet Peak Effective % . | . . . . Robots Rewired . | . . . . Allies Hacked . | . . . . Hacks Repelled . | . . . . Allies | -11 -10 -9 -9 -------- Run | Yrd Mat Mat Min Total Allies . | . . . . Largest Group . | . . . . Highest-Rated Group . | . . . . Highest-Rated Ally . | . . . . Total Orders . | . . . . Ally Attacks . | . . . . Total Damage . | . . . . Kills . | . . . . Allies Corrupted . | . . . . Allies Melted . | . . . . Intel | -11 -10 -9 -9 ------- Run | Yrd Mat Mat Min Robot Analysis Total . | . . . . Derelict Logs Recovered . | . . . . Drone Launches . | . . . . Drone Recoveries . | . . . . Exploration | -11 -10 -9 -9 ------------- Run | Yrd Mat Mat Min Turns Passed 2006 | 59 564 1323 60 Spaces Moved 1251 | 42 299 881 29 Core 7 | 7 . . . Treads . | . . . . Legs 253 | 35 218 . . Wheels 991 | . 81 881 29 Hover . | . . . . Flight . | . . . . Fastest Speed 50 | 50 90 90 90 Average Speed 96 | 117 111 90 90 Slowest Speed 200 | 200 120 105 90 Overloaded Moves . | . . . . Propulsion Burnouts . | . . . . Robots Hopped . | . . . . Cave-ins Triggered . | . . . . Exploration Rate (%) 33 | 3 46 74 12 Regions Visited 3 Branch Regions 1 Pre-discovered Areas . | . . . . Known Exits Taken . | . . . . Unknown Exits Taken 3 | 1 1 1 . Scrap Searched . | . . . . Spaces Dug . | . . . . Terrain Destroyed 13 | . 2 11 . Melee . | . . . . Projectile 2 | . 2 . . AOE 11 | . . 11 . Terrain Rammed . | . . . . Walls Destroyed . | . . . . Machines Disabled . | . . . . Actions | -11 -10 -9 -9 --------- Run | Yrd Mat Mat Min Total 1690 | 48 412 1184 46 Wait 147 | . 1 144 2 Move 1248 | 41 298 880 29 Hop . | . . . . Pick Up 20 | 1 9 10 . Fast Attach 20 | 6 5 9 . Attach 8 | . 2 5 1 Detach . | . . . . Swap 22 | . 10 12 . Drop 16 | . 8 8 . Fire 195 | . 72 109 14 Melee 8 | . 4 4 . Ram 3 | . . 3 . Kick 3 | . 3 . . Crush . | . . . . Escape Stasis . | . . . . Rewire . | . . . . Trap . | . . . . Miscellaneous . | . . . . Route ------- -11/Scrapyard -10/Materials (discovered 2 exits: [*Mat] / [*Min]) -9/Materials (discovered 4 exits: [*Mat x2] / [*Min x2]) -9/Mines History --------- Turn | Location | Event 10 | -11/Scrapyard | Discovered new exit (range 15) 60 | -11/Scrapyard | Entered Materials 289 | -10/Materials | Discovered new exit (range 5) 310 | -10/Materials | Build established: Mutant 441 | -10/Materials | Core integrity fell below 50% 476 | -10/Materials | Lost 4 parts (1p3w) 552 | -10/Materials | Discovered new exit (range 4) 624 | -10/Materials | Entered another Materials area 624 | -9/Materials | Evolved 2 slots: Utility x2 884 | -9/Materials | Discovered new exit (range 12) 1144 | -9/Materials | Discovered new exit (range 11) 1295 | -9/Materials | Discovered new exit (range 3) 1409 | -9/Materials | Core integrity fell below 50% 1433 | -9/Materials | Lost 5 parts (2n2u1w) 1824 | -9/Materials | First assault squad dispatched 1832 | -9/Materials | Core integrity fell below 20% 1933 | -9/Materials | Discovered new exit (range 15) 1947 | -9/Materials | Entered Mines 2007 | -9/Mines | Destroyed by G-47 Trooper with Particle Gun Last Messages --------------- Critical hit (Burn: +37). LOCATION=UNKNOWN GOAL=ESCAPE Something is scanning the area. K-01 Serf cleans the Seismic Survey Station. K-01 Serf collects debris. G-34 Mercenary destroyed. Acquired 15 matter. K-01 Serf collects debris. Acquired 3 matter. K-01 Serf collects debris. Acquired 3 matter. K-01 Serf collects debris. Sml. Storage Unit destroyed. Acquired 10 matter. K-01 Serf collects debris. Hvy. Assault Rifle destroyed. Chain reaction triggered in Lgt. Ion Engine. K-01 Serf destroyed. G-34 Mercenary misfires. Map ----- +----------------------------------------------------+ | | | | | | | | | | | ???????????????????????????????????? | | ???????????????????????????????????? | | ???????????????????????????????????? | | ???????????????????????????????????? | | ???????????????????????????????????? | | ???????????????????????????????????? | | ???????????????????????????????????? | | ???????????????????????????????????? | | ???????????????????????????????????? | | ???????????????????????????????????? | | ???????????????????????????????????? | | ???????????????????????????????????? | | ???????????????????????????????????? | | ???????????????????????????????????? | | ???????????????????????????????????? | | ????????????????????##?????????????? | | ?????????????????? ##????????????? | | ??????????###++## ##???????????? | | ?????????## ##??????????? | | ?????????# #?????????? | | ?????#####=@= %= ????????? | | ?# * gg = #????????? | | ?# ### ##### #?????????? | | ?#??????#[#???# ##?????????? | | ????????# #???# #?# ##??????????? | | ????????# #?### #######???????????? | | ????????# #?# #?????????????? | | ????????# #?# #?????????????? | | ????????# #?# #?????????????? | | ????????# #?# """ #?????????????? | | ????????# #?# """ #?????????????? | | ????????# #?# """ #?????????????? | | ????????# ### #?????????????? | | ????????# #?????????????? | | ????????##### #?????????????? | | ????????????# #?????????????? | | ????????????# #?????????????? | | ????????????##########?????????????? | | ???????????????????????????????????? | | ???????????????????????????????????? | | ???????????????????????????????????? | | ???????????????????????????????????? | | ???????????????????????????????????? | | ???????????????????????????????????? | | ???????????????????????????????????? | +----------------------------------------------------+ Best States ------------- Heat Dissipation 28 Energy Generation 14 Energy Capacity 280 Matter Stores 300 Matter Capacity 300 Sight Range 16 Terrain Scan Density 85 Additional Mass Support 6 Evasion (%) 55 Offensive Hacking 10 Item Schematics ----------------- None Robot Schematics ------------------ None Fabricated ------------ Nothing Alien Tech Used ----------------- None Achievements -------------- Use The Force Challenges ------------ None Game ------ Seed DefenseExpertNukerbomber Manual? 0 Play Time 00:23:38 Cumulative 10.1 hours Start 2025.03.29 @ 00:12:56 End 2025.03.29 @ 00:35:50 Sessions 1 Manual Loads 0 Difficulty Rogue Special Mode None Game No. 22 Rogue 22 Adventurer 0 Explorer 0 Win Type - Total 0 Types 0/0/0/0/0/0/0/0/0 Lore% 4 Gallery% 15 Achievement% 15 Wizard Run 0 Options --------- Layout 1 ASCII 0 Keyboard 0 Movement Mouse Keybinds 0 Fullscreen 1 Font 24/Smallcaps Map View 50x35 Zoom Use 0% Tactical HUD 0 Map Filters NONE Filters NONE Steam 1 RUN: 6be18a48-3e1b-4ed4-89e9-905343a1cddd